Cogmind - Beta 17 @@@ ROGUE MODE // 2026.06.23 @ 00:07:38 Player: WetterLettuce Result: Destroyed by G-47 Trooper with Particle Gun Performance ------------- Evolutions (4) 2000 Regions Visited (6) 1200 Robots Destroyed (43) 215 Value Destroyed (1649) 1649 Prototype IDs (1) 20 Alien Tech Used (0) 0 Bonus (7142) 7142 TOTAL SCORE: 12226 Bonus ------- Follower Combat Kills 348 Prayed to X0-1V1 5000 Major X0-1V1 Interference 1800 Friendly Fire -6 Cogmind --------- Core Integrity 0/550 Matter 300/300 Energy 455/455 System Corruption 0% Temperature Cool (9) Movement Walking (122) Location -6/Extension Parts ------- > --- POWER (2) -------- Nuclear Core Neutrino Core > --- PROPULSION (4) --- Carbon-fiber Leg Titanium Leg Flexi-carbon Leg Flexi-carbon Leg > --- UTILITY (5) ------ Large Storage Unit Armor Integrity Analyzer Improved System Shield > --- WEAPON (4) ------- Flak Gun Improved Proton Missile Launcher Heavy Hammer > --- INVENTORY (16) --- Ion Engine Fission Core Light Treads Trap Scanner Matter Filter Hardened Medium Armor Plating Hardened Medium Armor Plating Datajack Phasing Sabre Peak State ------------ > --- POWER ------------ Nuclear Core Neutrino Core > --- PROPULSION ------- Carbon-fiber Leg Titanium Leg Flexi-carbon Leg Flexi-carbon Leg > --- UTILITY ---------- Large Storage Unit Armor Integrity Analyzer Phase Shifter Hardened Medium Armor Plating Improved System Shield X0-1V1's Piety Tracker > --- WEAPON ----------- Flak Gun Improved Proton Missile Launcher Heavy Hammer > --- INVENTORY -------- Ion Engine Light Treads Trap Scanner Matter Filter Hardened Medium Armor Plating Datajack [Rating: 68] Favorites ----------- Power Ion Engine Engine Ion Engine Power Core Neutrino Core Propulsion Light Treads Treads Light Treads Leg Flexi-carbon Leg Utility X0-1V1's Piety Tracker Device X0-1V1's Piety Tracker Storage Large Storage Unit Processor Signal Interpreter Hackware Hacking Suite Protection Hardened Medium Armor Plating Weapon Autogun Energy Gun Particle Gun Ballistic Gun Autogun Ballistic Cannon Improved Light Cannon Launcher Improved Proton Missile Launcher Impact Weapon Heavy Hammer Build | -11 -10 -10 -8 -7 -6 -6 ------- Run | Yrd Mat Sub Mat Fac Fac Ext Slots Evolved 8 | . . . 4 2 2 . Power 1 | . . . . . 1 . Propulsion 1 | . . . . 1 . . Utility 4 | . . . 3 . 1 . Weapon 2 | . . . 1 1 . . Parts Attached 56 | 7 5 . 9 8 4 23 Power 7 | 1 . . . 1 1 4 Engine 4 | 1 . . . 1 1 1 Core 3 | . . . . . . 3 Reactor . | . . . . . . . Propulsion 12 | 2 1 . 4 1 . 4 Treads 8 | 2 1 . 4 1 . . Leg 4 | . . . . . . 4 Wheel . | . . . . . . . Hover . | . . . . . . . Flight . | . . . . . . . Utility 18 | 1 2 . 4 2 3 6 Device 7 | . 2 . 1 2 . 2 Storage 2 | 1 . . 1 . . . Processor 3 | . . . 1 . 1 1 Hackware 3 | . . . . . 1 2 Protection 3 | . . . 1 . 1 1 Artifact . | . . . . . . . Weapon 19 | 3 2 . 1 4 . 9 Energy Gun 5 | . . . . 2 . 3 Energy Cannon . | . . . . . . . Ballistic Gun 9 | 3 2 . . 2 . 2 Ballistic Cannon 3 | . . . 1 . . 2 Launcher 1 | . . . . . . 1 Special Weapon . | . . . . . . . Impact Weapon 1 | . . . . . . 1 Slashing Weapon . | . . . . . . . Piercing Weapon . | . . . . . . . Special Melee Weapon . | . . . . . . . Unidentified Prototypes 1 | . 1 . . . . . Parts Lost 29 | . . 1 4 3 . 21 Power 3 | . . . 1 . . 2 Propulsion 6 | . . 1 1 . . 4 Utility 9 | . . . 1 1 . 7 Weapon 11 | . . . 1 2 . 8 Highest Loss Streak 19 | . . 1 3 1 . 19 To Critical Strikes 1 | . . 1 . . . . Average Backups 10 | 2 7 7 9 14 15 13 Power 1 | . 1 1 2 2 2 2 Propulsion 1 | . 2 2 1 2 2 1 Utility 3 | . 1 1 2 5 5 4 Weapon 2 | . 1 2 2 2 4 4 Tool/Special . | . . . . . . . Unused Backups 15 | . 3 . . 1 2 9 Power 2 | . . . . . . 2 Propulsion 3 | . 2 . . . . 1 Utility 8 | . 1 . . 1 2 4 Weapon 1 | . . . . . . 1 Tool/Special 1 | . . . . . . 1 Average Slot Usage (%) 95 | . 98 99 93 96 99 89 Engine 10 | . 14 14 9 6 12 6 Core 1 | . . . . . . 4 Treads 22 | . 28 27 16 23 20 17 Leg 1 | . . . . . . 4 Device 12 | . 6 14 10 22 16 10 Storage 10 | . 14 14 15 7 6 5 Processor 4 | . . . 8 7 10 6 Hackware 1 | . . . . . 2 5 Protection 3 | . 5 . 6 . 3 4 Energy Gun 2 | . . . . 6 6 4 Ballistic Gun 20 | . 28 28 17 15 20 11 Ballistic Cannon 1 | . . . 7 4 . . Peak Build Rating 68 | 6 21 22 32 48 53 68 Average Rating 30 | 4 8 21 28 39 52 51 On Entrance 25 | . 6 21 21 28 48 52 Avg Prop Armor Cover (%) . | . . . . . . . Naked Turns . | . . . . . . . Heaviest Build 67 | 14 17 17 44 43 53 67 Greatest Support 88 | 40 40 40 40 68 68 88 Greatest Overweight (x) 3 | . . . 2 . . 3 Average Overweight (x) . | . . . . . . . Largest Inventory Capacity 16 | 8 8 9 16 16 16 16 Average Capacity 12 | 6 8 8 15 16 16 14 Most Carried 16 | 5 8 9 16 16 16 16 Average Carried 10 | 2 7 7 11 14 15 13 Final Capacity 16 | 8 8 9 16 16 16 16 Final Carried 16 | 4 7 9 16 15 15 9 Class Distribution -------------------- 46% | Mutant 19% | Scavenger-Tank 12% | Gunner 9% | Tank 6% | Scavenger-Mutant 4% | Scavenger-Gunner Dominant Class ---------------- Mutant | -10/Materials Mutant | -10/Subcaves Tank | -8/Materials Gunner | -7/Factory Scavenger-Tank | -6/Factory Scavenger-Tank | -6/Extension Resources | -11 -10 -10 -8 -7 -6 -6 ----------- Run | Yrd Mat Sub Mat Fac Fac Ext Matter Collected 2064 | 249 172 196 243 354 . 850 Remotely . | . . . . . . . Salvage Created 1686 | . 344 168 252 495 . 427 Parts 85 | . 17 20 13 25 . 10 Haulers Intercepted 1 | . 1 . . . . . Recyclers Shooed 2 | . . . . . . 2 Parts Field Recycled . | . . . . . . . Retrieved Matter . | . . . . . . . Parts Self-Destructed . | . . . . . . . Prevented . | . . . . . . . Parts Restored . | . . . . . . . Kills | -11 -10 -10 -8 -7 -6 -6 ------- Run | Yrd Mat Sub Mat Fac Fac Ext Combat Hostiles Destroyed 38 | . 8 4 8 9 . 9 Melee 1 | . . . . . . 1 Guns 31 | . 8 4 6 8 . 5 Cannons 4 | . . . 2 1 . 1 Classes Destroyed 9 | . 4 1 1 2 . 1 Builder 1 | . . . . 1 . . Hauler 1 | . 1 . . . . . Operator 1 | . . . . . . 1 Watcher 2 | . 1 . 1 . . . Swarmer 7 | . 3 . 4 . . . Grunt 17 | . 5 . 2 5 . 5 Sentry 6 | . . . 2 1 . 3 Hunter 3 | . . . . 3 . . Subdweller 4 | . . 4 . . . . Guerrilla 1 | . . . . . . 1 Best Kill Streak 7 | . 3 2 7 5 . 3 Combat Bots Only 6 | . 3 2 6 3 . 3 Max Kills in Single Turn 2 | . 1 1 2 1 . 1 Gunslinging . | . . . . . . . Exploded . | . . . . . . . Melee 1 | . . . . . . 1 Uniques/NPCs Destroyed . | . . . . . . . Combat | -11 -10 -10 -8 -7 -6 -6 -------- Run | Yrd Mat Sub Mat Fac Fac Ext Hostile Shots Fired 600 | . 40 28 52 73 . 407 Missed 190 | . 11 6 15 22 . 136 Hits 410 | . 29 22 37 51 . 271 Projectile 410 | . 29 22 37 51 . 271 Critical Strikes 5 | . . 1 2 . . 2 Damage Taken 4701 | . 322 460 541 732 . 2646 Core 965 | . 14 103 37 105 . 706 Absorbed by Shields . | . . . . . . . Core Remaining (%) 75 | 100 . 31 90 80 . . Volleys Fired 139 | . 31 21 23 25 . 39 Largest 4 | . 2 2 3 4 . 4 Hottest 156 | . 40 46 79 124 . 156 Shots Fired 351 | . 62 42 67 75 . 105 Gun 303 | . 62 42 45 68 . 86 Cannon 48 | . . . 22 7 . 19 Launcher . | . . . . . . . Special . | . . . . . . . Kinetic 309 | . 62 42 67 57 . 81 Thermal 17 | . . . . . . 17 Explosive . | . . . . . . . Electromagnetic 25 | . . . . 18 . 7 Robot Hit Streak 15 | . 6 7 15 9 . 10 Robot Miss Streak 8 | . 3 3 2 4 . 8 Penetration Max 1 | . . . . . . 1 Secondary Targets 8 | . 3 1 . 3 . 1 Max Gunslinging Chain 1 | . 1 1 . 1 . 1 Shots Hit Robots 232 | . 36 29 38 55 . 74 Core Hits 130 | . 19 8 17 27 . 59 Critical Kills 1 | . . . . . . 1 Critical Parts Destroyed 1 | . . . . . . 1 Critical Strikes 8 | . . . 1 2 . 5 Blast 5 | . . . 1 1 . 3 Corrupt 1 | . . . . 1 . . Smash 2 | . . . . . . 2 Melee Attacks 5 | . . . . . . 5 Impact 5 | . . . . . . 5 Slashing . | . . . . . . . Piercing . | . . . . . . . Sneak Attacks 1 | . . . . . . 1 Combat Hostiles . | . . . . . . . Follow-up Attacks . | . . . . . . . Damage Inflicted 3961 | . 467 319 702 830 . 1643 Guns 3011 | . 467 319 397 771 . 1057 Cannons 822 | . . . 305 59 . 458 Explosions . | . . . . . . . Melee 128 | . . . . . . 128 Ramming . | . . . . . . . Kinetic 3354 | . 467 319 702 600 . 1266 Thermal 183 | . . . . . . 183 Explosive . | . . . . . . . Electromagnetic 296 | . . . . 230 . 66 Impact 128 | . . . . . . 128 Slashing . | . . . . . . . Piercing . | . . . . . . . Highest Corruption . | . . . . . . . Average Corruption . | . . . . . . . Corruption Purged . | . . . . . . . Corruption Blocked . | . . . . . . . Overload Shots . | . . . . . . . Overflow Damage 47 | . . . . . . 47 Projectiles 18 | . . . . . . 18 Explosions . | . . . . . . . Melee 29 | . . . . . . 29 Knockbacks 5 | . . . 4 . . 1 Impact 1 | . . . . . . 1 Kinetic 4 | . . . 4 . . . Secondary . | . . . . . . . Self-Inflicted Damage . | . . . . . . . Shots . | . . . . . . . Rammed . | . . . . . . . Targets Rammed . | . . . . . . . Kicked . | . . . . . . . Crushed . | . . . . . . . Highest Temperature 339 | . 9 . 339 85 . 158 Average Temperature 79 | . 4 . 147 26 . 54 Received Heat Transfer 1740 | . 138 90 270 276 . 966 Siege Activations . | . . . . . . . Martial Activations . | . . . . . . . Shielding Activations . | . . . . . . . Robots Disrupted . | . . . . . . . Combat Hostiles . | . . . . . . . Robots Corrupted 2 | . . . . . . 2 Combat Hostiles 1 | . . . . . . 1 Parts Fried 2 | . . . . . . 2 Impact Corruptions 2 | . . . . . . 2 Robots Melted . | . . . . . . . Combat Hostiles . | . . . . . . . Parts Melted . | . . . . . . . Heat Transferred 409 | . . . . . . 409 Parts Sabotaged . | . . . . . . . Parts Stolen . | . . . . . . . Parts Stripped . | . . . . . . . Power Chain Reactions . | . . . . . . . Alert | -11 -10 -10 -8 -7 -6 -6 ------- Run | Yrd Mat Sub Mat Fac Fac Ext Maximum Alert Level 1 | . . . . . . 1 Low Security (%) 99 | 100 100 . 100 100 100 98 Level 1 . | . . . . . . 1 Level 2 . | . . . . . . . Level 3 . | . . . . . . . Level 4 . | . . . . . . . Level 5 . | . . . . . . . High Security . | . . . . . . . Max Security . | . . . . . . . Peak Influence 210 | . 66 . 137 91 32 210 Initial 32 | . . . . 26 32 . Average 32 | . 17 . 76 34 6 33 Influence Increases 1443 | . 217 . 269 226 5 726 Destroy 0b10 Robot/C 860 | . 160 . 160 180 . 360 Destroy 0b10 Robot/NC 25 | . 10 . 5 5 . 5 Destroy Leader 156 | . 34 . 42 40 . 40 Allied During Kill 79 | . . . . . . 79 Successful Hack 30 | . 12 . . . 5 13 Disable Machine 30 | . . . 15 . . 15 Destroy Structure 28 | . 1 . 2 1 . 24 Lose Combat Pursuer 75 | . . . 45 . . 30 Miscellaneous 160 | . . . . . . 160 Influence Decreases 1259 | . 217 . 210 219 71 542 Entered New Map 67 | . . . . 33 34 . Time Decay 811 | . 217 . 170 156 37 231 Lost Part 221 | . . . 40 30 . 151 Lost Ally 160 | . . . . . . 160 Squads Dispatched 5 | . . . 1 1 . 3 Investigation 2 | . . . 1 1 . . Extermination . | . . . . . . . Reinforcement 3 | . . . . . . 3 Assault . | . . . . . . . Garrison . | . . . . . . . Intercept . | . . . . . . . Searches Triggered . | . . . . . . . Construction Impeded . | . . . . . . . Haulers Reinforced . | . . . . . . . Active Scanning Responses . | . . . . . . . Cargo Convoy Interrupts . | . . . . . . . Stealth | -11 -10 -10 -8 -7 -6 -6 --------- Run | Yrd Mat Sub Mat Fac Fac Ext Distress Signals 3 | . 1 . . . . 2 Communications Jammed . | . . . . . . . Distress Signals . | . . . . . . . Times Spotted 74 | . 17 5 16 10 . 26 Peak Tracking Total 8 | . 4 2 7 3 . 8 Tactical Retreats 3 | . . . 2 . . 1 Traps | -11 -10 -10 -8 -7 -6 -6 ------- Run | Yrd Mat Sub Mat Fac Fac Ext Traps Triggered 1 | . . . . 1 . . Indirectly . | . . . . . . . Trap Hack Attempts . | . . . . . . . Triggered . | . . . . . . . Disarmed . | . . . . . . . Reprogrammed . | . . . . . . . Reused . | . . . . . . . Traps Extracted . | . . . . . . . Installed . | . . . . . . . Triggered . | . . . . . . . Machines | -11 -10 -10 -8 -7 -6 -6 ---------- Run | Yrd Mat Sub Mat Fac Fac Ext Machines Disabled 2 | . . . 1 . . 1 Max in Single Turn 1 | . . . 1 . . 1 Machines Repaired . | . . . . . . . Machines Dismantled . | . . . . . . . Machines Sabotaged . | . . . . . . . Overloaded Fab Kills . | . . . . . . . Hacking | -11 -10 -10 -8 -7 -6 -6 --------- Run | Yrd Mat Sub Mat Fac Fac Ext Machines Accessed 15 | . 6 1 1 1 2 4 Terminals 10 | . 4 . . . 2 4 Fabricators 1 | . . . . 1 . . Repair Stations 1 | . 1 . . . . . Recycling Units 1 | . 1 . . . . . Scanalyzers 1 | . . . 1 . . . Garrison Access . | . . . . . . . Total Hacks 37 | . 20 2 3 1 4 7 Successful 19 | . 9 2 1 . 2 5 Failed 18 | . 11 . 2 1 2 2 Catastrophic . | . . . . . . . Database Lockouts . | . . . . . . . Manual 16 | . 11 . . 1 2 2 Terminals 25 | . 14 . . . 4 7 Fabricators 1 | . . . . 1 . . Repair Stations 1 | . 1 . . . . . Recycling Units 5 | . 5 . . . . . Scanalyzers 3 | . . . 3 . . . Garrison Access . | . . . . . . . Terminal Hacks 8 | . 2 2 . . 1 3 Record 2 | . . 2 . . . . Open Door 3 | . . . . . 1 2 Emergency Access Points 1 | . 1 . . . . . Locate Traps 2 | . 1 . . . . 1 Fabricator Hacks . | . . . . . . . Repair Station Hacks 1 | . 1 . . . . . Refit 1 | . 1 . . . . . Recycling Unit Hacks 1 | . 1 . . . . . Retrieve Components 1 | . 1 . . . . . Scanalyzer 1 | . . . 1 . . . Retrieve Study 1 | . . . 1 . . . Garrison Access Hacks . | . . . . . . . Unauthorized Hacks 8 | . 5 . . . 1 2 Terminals 6 | . 3 . . . 1 2 Botnet 6 | . 3 . . . 1 2 Fabricators . | . . . . . . . Repair Stations . | . . . . . . . Recycling Units 2 | . 2 . . . . . Monitor 1 | . 1 . . . . . Recyclers 1 | . 1 . . . . . Scanalyzers . | . . . . . . . Garrison Access . | . . . . . . . Data Cores Recovered . | . . . . . . . Used . | . . . . . . . Hacking Detections 9 | . 4 . 1 1 1 2 Full Trace Events 1 | . . . 1 . . . Feedback Events . | . . . . . . . Feedback Blocked . | . . . . . . . Robot Schematics Acquired . | . . . . . . . Robots Built . | . . . . . . . Authchips . | . . . . . . . Time . | . . . . . . . Total Robot Build Rating . | . . . . . . . Part Schematics Acquired . | . . . . . . . Parts Built . | . . . . . . . Authchips . | . . . . . . . Time . | . . . . . . . Total Part Build Rating . | . . . . . . . Part Studies Acquired 1 | . . . 1 . . . Parts Repaired . | . . . . . . . Time . | . . . . . . . Parts Recycled . | . . . . . . . Recycled Matter . | . . . . . . . Retrieved Matter . | . . . . . . . Retrieved Components 2 | . 2 . . . . . Parts Scanalyzed . | . . . . . . . Part Schematics Acquired . | . . . . . . . Parts Damaged . | . . . . . . . Bothacking | -11 -10 -10 -8 -7 -6 -6 ------------ Run | Yrd Mat Sub Mat Fac Fac Ext Used RIF Installer . | . . . . . . . Robots Hacked . | . . . . . . . Non-combat . | . . . . . . . Combat . | . . . . . . . Robot Hacks Applied . | . . . . . . . Relay Couplers Released . | . . . . . . . Fabnet Peak Effective % . | . . . . . . . Robots Rewired 7 | . . . . . . 7 Allies Hacked . | . . . . . . . Hacks Repelled . | . . . . . . . Allies | -11 -10 -10 -8 -7 -6 -6 -------- Run | Yrd Mat Sub Mat Fac Fac Ext Total Allies 10 | . . . . . . 10 Largest Group 5 | . . . . . . 5 Highest-Rated Group 147 | . . . . . . 147 Highest-Rated Ally 39 | . . . . . . 39 Total Orders . | . . . . . . . Ally Attacks 55 | . . . . . . 55 Total Damage 1150 | . . . . . . 1150 Kills 9 | . . . . . . 9 Allies Corrupted . | . . . . . . . Allies Melted . | . . . . . . . X0-1V1 Amusement Gains 68 | . 23 . 5 10 . 30 Good Acts 5 | . . 2 1 1 . 1 Bad Acts 13 | . . . 4 2 . 7 Intel | -11 -10 -10 -8 -7 -6 -6 ------- Run | Yrd Mat Sub Mat Fac Fac Ext Active Infowar (turns) . | . . . . . . . Robot Analysis Total . | . . . . . . . Derelict Logs Recovered 1 | . . 1 . . . . Drone Launches . | . . . . . . . Drone Recoveries . | . . . . . . . Exploration | -11 -10 -10 -8 -7 -6 -6 ------------- Run | Yrd Mat Sub Mat Fac Fac Ext Turns Passed 2918 | 90 769 368 397 368 211 715 Spaces Moved 1390 | 49 405 196 143 159 120 318 Core 22 | 2 . . . . . 20 Treads 1303 | 47 405 196 143 159 120 233 Legs 65 | . . . . . . 65 Wheels . | . . . . . . . Hover . | . . . . . . . Flight . | . . . . . . . Fastest Speed 50 | 50 160 160 160 166 166 50 Average Speed 164 | 155 160 160 216 166 166 150 Slowest Speed 320 | 160 160 160 320 166 166 200 Overloaded Moves . | . . . . . . . Propulsion Burnouts . | . . . . . . . Robots Hopped . | . . . . . . . Potential Cave-ins . | . . . . . . . Cave-ins Triggered . | . . . . . . . Exploration Rate (%) 24 | 4 87 20 19 7 6 29 Regions Visited 6 Branch Regions 2 Pre-discovered Areas . | . . . . . . . Known Exits Taken 4 | . . 1 1 1 1 . Unknown Exits Taken 2 | 1 1 . . . . . Scrap Searched . | . . . . . . . Spaces Dug . | . . . . . . . Terrain Destroyed 5 | . . . . . . 5 Melee . | . . . . . . . Projectile 5 | . . . . . . 5 AOE . | . . . . . . . Terrain Rammed . | . . . . . . . Walls Destroyed . | . . . . . . . Machines Disabled . | . . . . . . . Actions | -11 -10 -10 -8 -7 -6 -6 --------- Run | Yrd Mat Sub Mat Fac Fac Ext Total 1742 | 61 468 217 186 211 133 466 Wait 36 | . 10 . . 9 . 17 Move 1384 | 48 404 195 142 158 119 318 Hop . | . . . . . . . Pick Up 47 | 6 9 1 11 8 6 6 Fast Attach 25 | 3 1 . 2 2 1 16 Attach 24 | 3 1 . 4 6 2 8 Detach . | . . . . . . . Swap 12 | 1 3 . 4 1 1 2 Drop 21 | . 9 . . 2 4 6 Fire 139 | . 31 21 23 25 . 39 Melee 5 | . . . . . . 5 Ram . | . . . . . . . Kick . | . . . . . . . Crush . | . . . . . . . Escape Stasis . | . . . . . . . Rewire 49 | . . . . . . 49 Trap . | . . . . . . . Miscellaneous . | . . . . . . . Route ------- -11/Scrapyard -10/Materials (discovered 6 exits: [*Mat x3] / [*Min x2] / *Sub) -10/Subcaves (discovered 3 exits: *Mat x2 / Rec) -8/Materials -7/Factory (discovered 2 exits: *Fac / Sto) -6/Factory -6/Extension History --------- Turn | Location | Event 33 | -11/Scrapyard | Discovered new exit (range 16) 91 | -11/Scrapyard | Entered Materials 265 | -10/Materials | Discovered new exit (range 8) 301 | -10/Materials | Build established: Mutant 371 | -10/Materials | Discovered new exit (range 5) 489 | -10/Materials | Discovered new exit (range 16) 519 | -10/Materials | Discovered new exit (range 14) 790 | -10/Materials | Discovered new exit (range 10) 838 | -10/Materials | Discovered new exit (range 8) 849 | -10/Materials | Prayed at D.C.S.S. Altar Unit 860 | -10/Materials | Entered Subcaves 861 | -10/Subcaves | Approached by a straggling Scientist 876 | -10/Subcaves | Visited Clippyterm 881 | -10/Subcaves | Identified exit to Materials 881 | -10/Subcaves | Identified exit to Recycling 918 | -10/Subcaves | Inventory capacity permanently improved by X0-1V1 (+1) 1009 | -10/Subcaves | X0-1V1 activates XOMVISION 1101 | -10/Subcaves | Core integrity fell below 50% 1228 | -10/Subcaves | Entered Materials 1228 | -8/Materials | Evolved 4 slots: Utility x3, Weapon x1 1477 | -8/Materials | Ranged accuracy permanently improved by X0-1V1 (+5%) 1602 | -8/Materials | Discovered new exit (range 9) 1621 | -8/Materials | Identified exit to Factory 1625 | -8/Materials | Entered Factory 1625 | -7/Factory | Evolved 2 slots: Propulsion x1, Weapon x1 1626 | -7/Factory | Identified exit to Storage 1639 | -7/Factory | X0-1V1 sent you into danger 1656 | -7/Factory | Lost 3 parts (1p1u1w) 1899 | -7/Factory | X0-1V1 sent hostile H-55 Commando (x2) 1977 | -7/Factory | Discovered new exit (range 8) 1991 | -7/Factory | Identified exit to Factory 1993 | -7/Factory | Entered another Factory area 1993 | -6/Factory | Evolved 2 slots: Power x1, Utility x1 2197 | -6/Factory | Discovered new exit (range 6) 2202 | -6/Factory | Identified exit to Extension 2204 | -6/Factory | Entered Extension 2278 | -6/Extension | Rescued a captive Derelict 2279 | -6/Extension | Rescued a captive Derelict 2379 | -6/Extension | X0-1V1 mutated your Weapon slot to Propulsion slot 2400 | -6/Extension | Build established: Scavenger-Tank 2504 | -6/Extension | Lost 3 allies 2569 | -6/Extension | Rescued a captive Derelict 2736 | -6/Extension | Lost 5 allies 2741 | -6/Extension | Core integrity fell below 50% 2757 | -6/Extension | Core integrity fell below 20% 2777 | -6/Extension | Matter capacity permanently improved by X0-1V1 (+300) 2789 | -6/Extension | Lost 19 parts (2p4n5u8w) 2886 | -6/Extension | X0-1V1 mutated your Utility slot to Weapon slot 2890 | -6/Extension | X0-1V1 added 0b10 threat records associated with you (minor) 2897 | -6/Extension | X0-1V1 sent hostile G-47 Trooper (x3) 2919 | -6/Extension | Destroyed by G-47 Trooper with Particle Gun Last Messages --------------- Attempting to rewire ME-7TI(b). ME-7TI(b) rewired. Attempting to rewire ZJ-HEV(h). ZJ-HEV(h) rewired. X0-1V1's Piety Tracker destroyed. Phase Shifter destroyed. Attempting to rewire ZJ-UOT(b). HV Slug penetrates G-47 Trooper. G-47 Trooper suffers critical hit (Destroy). Destroyed Aluminum Leg. Attempting to rewire ZJ-UOT(b). Critical hit (Burn: +37). Attempting to rewire ZJ-UOT(b). HV Slug penetrates G-47 Trooper. G-47 Trooper suffers critical hit (Destroy). Destroyed Lgt. Nuclear Core. G-47 Trooper knocked back. Attempting to rewire ZJ-UOT(b). X0-1V1 giggles madly! Map ----- +----------------------------------------------------+ | | | | | | | | | | | | | | | | | ?????????????????????????????????????????????????? | | ?????###?????????????????????????????????????????? | | ?###############?????????????????????????????????? | | ?# % %###################???????????????? | | ?# = %] + #???????????????? | | ?# ] % ##### ########### #???????????????? | | ?# ] %% #???# #?????????# #???????????????? | | ?# =%] #??## ##????????# #???????????????? | | ?# #??# #????????# #???????????????? | | ?#######/#######??# #???????## ##??????????????? | | ###### #??????# #???????# ########???????? | | ### %/#??????#####???????# T #???????? | | T #??????????????????# ### #???????? | | ### #???????????############?# #???????? | | ####?# #???????????# #?????# #???????? | | ?????## ####???????????# % #?????# #???????? | | ?????#T #??????????????# hb]g #######! #???????? | | ?????## #??????????????# @ = g=b #???????? | | ??????# #??????????????# g ;###### #???????? | | ??????###??????????????# ##????# ! #???????? | | ???????????????????????######;#?????# = #???????? | | ??????????????????????????????#?????# ! [#???????? | | ???????????????????????????????######+##%#???????? | | ???????????????????????????????# ==!= #[#???????? | | ???????????????????????????????# = "%##??????? | | ??????????????????????????????## !%"%"#??????? | | ??????????????????????????????# "T%^% %#??????? | | ??????????????????????????????## """=% ##??????? | | ???????????????????????????????#######%#%#???????? | | ?????????????????????????????????????###%#???????? | | ???????????????????????????????????????? #???????? | | ???????????????????????????????????????? #???????? | | ???????????????????????????????????????? "???????? | | ???????????????????????????????????????? "???????? | | ???????????????????????????????????????? ???????? | | ???????????????????????????????????????? ??????? | | ???????????????????????????????????????? ??????? | | ????????????????????????????????????????? ???????? | | ????????????????????????????????????????? ???????? | | ????????????????????????????????????????? ???????? | | ?????????????????????????????????????????????????? | | ?????????????????????????????????????????????????? | +----------------------------------------------------+ Best States ------------- Heat Dissipation 56 Energy Generation 32 Energy Capacity 480 Matter Stores 499 Matter Capacity 600 Sight Range 16 Terrain Scan Density 10 Armor Coverage 225 Phase Shifting 5 Evasion (%) 55 Core Analysis 6 Armor Integrity Analysis 30 Recoil Reduction 7 Offensive Hacking 10 Defensive Hacking 12 Item Schematics ----------------- None Robot Schematics ------------------ None Fabricated ------------ Nothing Repaired ---------- Nothing Studied --------- Arm. Treads | -8/Materials | Hacked Alien Tech Used ----------------- None Achievements -------------- None Challenges ------------ None Game ------ Seed PortableGodCleaver Manual? 0 Play Time 00:25:04 Cumulative 112.0 hours Start 2026.06.22 @ 23:44:57 End 2026.06.23 @ 00:07:38 Sessions 1 Manual Loads 0 Difficulty Rogue Special Mode None Game No. 137 Rogue 137 Adventurer 0 Explorer 0 Win Type - Total 1 Types 1/0/0/0/0/0/0/0/0/0 Lore% 75 Gallery% 55 Achievement% 40 Wizard Run 0 Options --------- Layout 1 ASCII 0 Keyboard 0 Movement Mouse Keybinds 0 Fullscreen 2 Font 24/Smallcaps Map View 50x35 Zoom Use 0% Tactical HUD 0 Map Filters NONE Filters NONE Steam 1 RUN: ff79d9a4-9321-4af7-b44b-6f409a44ea05